bitfinex/quotes_ETHUSD_20241023
["timestamp","ask_amount","ask_price","bid_price","bid_amount"]
[1729647251830,0.8154,2624.6,2623.9,0.8239]
[1729647251987,0.8154,2624.6,2624.0,3.42987]
[1729647251988,3.42909,2624.6,2624.0,3.42987]
[1729647252175,6.8583,2624.6,2624.0,4.62222277]
[1729647252371,3.42909,2624.6,2624.1,1.19235277]
[1729647252572,6.85825,2624.6,2624.1,4.62208277]
[1729647252873,3.42923,2624.5,2624.1,1.19235277]
[1729647253087,3.42923,2624.5,2624.0,1.19235277]
[1729647253421,6.85852,2624.5,2624.1,1.19235277]
[1729647253911,3.42939,2624.4,2624.1,1.19235277]
[1729647254120,3.42961,2624.2,2624.1,1.19235277]
[1729647254276,3.42961,2624.2,2624.0,1.19235277]
[1729647254476,3.42961,2624.2,2624.1,1.19235277]
[1729647255413,3.42961,2624.3,2624.1,1.5898037]
[1729647255619,3.42961,2624.3,2624.2,1.18584857]
[1729647256484,3.42928,2624.5,2624.2,1.5898037]
[1729647256696,3.42928,2624.5,2624.4,1.1874767]
[1729647257980,3.42911,2624.6,2624.4,1.1874767]
[1729647258204,3.42911,2624.6,2624.5,1.1874767]
[1729647258651,3.42922,2624.5,2624.4,1.5898037]
[1729647259521,3.42922,2624.5,2624.4,1.58541544]
[1729647261641,3.42935,2624.4,2624.3,1.58541544]
[1729647263521,3.42935,2624.4,2624.2,1.58541544]
[1729647263850,3.42948,2624.3,2624.2,1.58541544]
[1729647264337,3.42948,2624.3,2624.1,1.58541544]
[1729647264531,3.42961,2624.2,2624.1,1.58541544]
[1729647265046,3.42948,2624.3,2624.1,1.58541544]
[1729647265269,3.42923,2624.5,2624.3,0.7702]
[1729647265617,3.42935,2624.4,2624.3,1.96086128]
[1729647265958,3.42935,2624.4,2624.3,0.7702]
[1729647266849,3.42923,2624.5,2624.3,0.7702]
[1729647267664,6.85855,2624.5,2624.3,0.7702]
[1729647268458,6.8311278,2624.9,2624.3,0.7702]
[1729647268459,3.4292,2624.6,2624.3,0.7702]
[1729647268630,3.4292,2624.6,2624.3,1.35319143]
[1729647268838,3.42925,2624.5,2624.3,1.35319143]
[1729647269045,3.42925,2624.5,2624.3,0.7702]
[1729647269249,3.4292,2624.6,2624.3,0.7702]
[1729647270469,3.4023578,2624.9,2624.3,0.7702]
[1729647270666,1.755009,2625.0,2624.3,0.7702]
[1729647270667,3.4291,2624.6,2624.3,0.7702]
[1729647271420,3.42892,2624.8,2624.3,0.7702]
[1729647271629,3.42892,2624.8,2624.4,0.42759531]
[1729647272369,3.42903,2624.7,2624.4,0.42759531]
[1729647273271,3.4291,2624.6,2624.4,0.42759531]
[1729647273431,3.42892,2624.8,2624.4,0.42759531]
[1729647273626,3.42908,2624.7,2624.4,0.42759531]
[1729647274129,0.974809,2625.0,2624.5,0.7702]
[1729647274329,6.8575,2624.9,2624.6,0.47032384]
[1729647274528,3.4287,2624.9,2624.5,0.7702]
[1729647274767,3.4287,2624.9,2624.5,0.84639702]
[1729647275666,6.85749,2624.9,2624.5,0.84639702]
[1729647276044,3.42883,2624.8,2624.5,0.7702]
[1729647278442,3.42902,2624.7,2624.5,0.7702]
[1729647278832,3.42909,2624.6,2624.5,0.7702]
[1729647279032,1.6736008,2624.7,2624.5,0.7702]
[1729647279033,5.1025708,2624.7,2624.5,0.7702]
[1729647279228,3.42897,2624.7,2624.5,0.7702]
[1729647279463,3.4288,2624.9,2624.5,0.7702]
[1729647279935,3.42892,2624.8,2624.5,0.7702]
[1729647281673,5.1024008,2624.9,2624.5,0.7702]
[1729647281849,3.42897,2624.7,2624.5,0.7702]
[1729647287363,3.4289,2624.8,2624.5,0.7702]
[1729647287571,3.42896,2624.7,2624.5,0.7702]
[1729647287877,3.42896,2624.7,2624.5,1.19778503]
[1729647292453,3.42896,2624.7,2624.5,0.7702]
[1729647294692,6.85799,2624.7,2624.5,0.7702]
[1729647295393,3.42896,2624.7,2624.5,0.7702]
[1729647297262,3.42896,2624.7,2624.2,1.19066128]
[1729647297263,3.42935,2624.4,2624.2,1.19066128]
[1729647297462,5.1030808,2624.3,2624.1,0.7786]
[1729647297913,1.6736008,2624.3,2624.1,0.7786]
[1729647298210,3.42935,2624.4,2624.1,1.32614739]
[1729647298505,6.8588,2624.4,2624.1,2.51680867]
[1729647298703,3.42952,2624.3,2624.1,2.51680867]
[1729647299009,3.42952,2624.3,2624.1,1.32614739]
[1729647299867,5.1031208,2624.3,2624.1,1.32614739]
[1729647300091,3.42961,2624.2,2623.9,1.96926128]
[1729647301507,5.1030108,2624.4,2623.9,1.96926128]
[1729647301679,3.4295,2624.3,2623.9,1.96926128]
[1729647301874,3.4295,2624.3,2624.0,0.53992813]
[1729647303713,3.42965,2624.2,2624.0,0.53992813]
[1729647303900,3.42965,2624.2,2623.9,1.96926128]
[1729647304220,3.42949,2624.3,2623.9,1.96926128]
[1729647304808,3.42949,2624.3,2623.9,0.7786]
[1729647304963,3.42962,2624.2,2623.9,0.7786]
[1729647305168,3.42949,2624.3,2623.9,0.7786]
[1729647305363,3.42949,2624.3,2623.9,1.83257308]
[1729647305599,6.85904,2624.3,2623.9,1.83257308]
[1729647306113,3.42949,2624.3,2623.9,1.83257308]
[1729647306484,3.42949,2624.3,2623.9,5.26257308]
[1729647306686,3.42949,2624.3,2623.9,5.33878581]
[1729647306889,3.42949,2624.3,2624.0,0.65294471]
[1729647309041,3.42949,2624.3,2623.9,1.83257308]
[1729647315491,3.42949,2624.3,2623.9,1.90878587]
[1729647315850,3.42949,2624.3,2623.9,1.83257308]
[1729647316689,3.42961,2624.2,2623.9,1.83257308]
[1729647317093,5.1032608,2624.2,2623.9,0.7786]
[1729647319245,3.42966,2624.2,2623.9,0.7786]
[1729647321261,4.24379,2624.3,2623.9,0.7786]
[1729647322613,3.42963,2624.2,2623.9,0.7786]
[1729647323008,5.9173908,2624.3,2623.9,0.7786]
[1729647324319,5.1030908,2624.3,2623.9,4.2086]
[1729647324632,3.42949,2624.3,2624.0,0.54754761]
[1729647326525,5.1030908,2624.3,2624.0,0.54754761]
[1729647327808,3.42936,2624.4,2624.0,3.97739761]
[1729647329142,5.1028208,2624.5,2624.1,0.55943396]
[1729647329442,3.42909,2624.6,2624.2,4.19979]
[1729647330924,3.42883,2624.8,2624.3,3.42948]
[1729647331124,3.42902,2624.7,2624.4,0.7702]
[1729647331527,5.1024308,2624.8,2624.4,0.7702]
[1729647331763,5.1668935,2624.7,2624.4,0.7702]
[1729647332198,3.42909,2624.6,2624.4,0.7702]
[1729647332460,5.1028208,2624.5,2624.2,1.96086128]
[1729647332663,5.1030808,2624.3,2624.1,1.19066128]
[1729647332870,3.42948,2624.3,2624.0,1.96086128]
[1729647333050,0.06559912,2624.2,2624.0,1.96086128]
[1729647333222,0.06559912,2624.2,2624.0,0.7702]
[1729647333421,3.42948,2624.3,2624.0,1.96086128]
[1729647333667,0.06560027,2624.1,2624.0,5.39073128]
[1729647333869,1.6736008,2624.4,2624.0,6.43136295]
[1729647334074,0.06560027,2624.1,2624.0,6.43136295]
[1729647334374,0.06553951,2624.1,2624.0,5.31691443]
[1729647334528,1.6736008,2624.5,2624.0,5.31691443]
[1729647334721,0.06553892,2624.4,2624.2,4.1998]
[1729647334963,3.42902,2624.7,2624.2,5.38987208]
[1729647335160,0.06545849,2624.6,2624.2,8.89560699]
[1729647335323,0.06545849,2624.6,2624.2,8.81940208]
[1729647335526,0.06545849,2624.6,2624.3,1.14380495]
[1729647336735,0.06545849,2624.6,2624.3,4.57326495]
[1729647337911,1.73905929,2624.6,2624.3,1.14380495]
[1729647338590,1.6736008,2624.5,2624.3,1.14380495]
[1729647339124,0.06551363,2624.4,2624.3,1.14380495]
[1729647339414,1.6736008,2624.6,2624.3,1.14380495]
[1729647339608,0.06551363,2624.4,2624.3,1.14380495]
[1729647339808,1.6736008,2624.6,2624.3,1.14380495]
[1729647339979,0.06551363,2624.4,2624.3,1.14380495]
[1729647340183,1.6736008,2624.6,2624.3,1.14380495]
[1729647340385,0.06551363,2624.4,2624.3,1.14380495]
[1729647340711,1.6736008,2624.4,2624.3,1.14380495]
[1729647341026,1.73911443,2624.4,2624.2,1.19013208]
[1729647341802,1.6736008,2624.3,2624.2,1.19013208]
[1729647342110,1.6736008,2624.3,2624.0,1.19013208]
[1729647342405,1.6736008,2624.3,2624.0,4.61994208]
[1729647342406,0.06555383,2624.3,2624.0,4.61994208]
[1729647342982,0.06555383,2624.3,2624.0,3.42981]
[1729647343575,1.73915463,2624.3,2624.0,4.61994208]
[1729647343775,0.06555383,2624.3,2624.0,3.42981]
[1729647344274,0.06555383,2624.3,2624.0,4.46966975]
[1729647344818,0.06555383,2624.3,2624.0,1.03985975]
[1729647345516,1.73915463,2624.3,2624.0,1.03985975]
[1729647346030,0.06555383,2624.3,2624.0,1.03985975]
[1729647347756,1.73915463,2624.3,2624.0,1.03985975]
[1729647349059,5.16870463,2624.3,2624.0,1.03985975]
[1729647349240,5.98550463,2624.3,2623.9,1.19013208]
[1729647353142,0.88235383,2624.3,2623.9,4.62013208]
[1729647355879,2.55595463,2624.3,2623.9,4.62013208]
[1729647356104,0.88235383,2624.3,2623.9,4.62013208]
[1729647356692,2.55595463,2624.3,2623.9,4.62013208]
[1729647358279,5.98545463,2624.3,2623.9,4.62013208]
[1729647359159,1.6736008,2624.2,2623.9,1.19013208]
[1729647359365,0.06547227,2624.1,2623.9,1.19013208]
[1729647361529,0.06547227,2624.1,2623.9,2.48382224]
[1729647361828,5.9199008,2624.3,2623.9,2.48382224]
[1729647362129,5.9199008,2624.3,2623.9,1.19013208]
[1729647362290,0.06547255,2624.2,2623.9,1.19013208]
[1729647362692,5.9199008,2624.3,2623.9,1.19013208]
[1729647362928,0.06547227,2624.1,2623.9,1.19013208]
[1729647363126,5.9199008,2624.3,2623.9,1.19013208]
[1729647363299,0.06547199,2624.0,2623.9,1.19013208]
[1729647363489,5.9199008,2624.3,2623.9,2.48382224]
[1729647363684,0.06547126,2624.0,2623.9,1.19013208]
[1729647363916,5.9199008,2624.3,2623.9,1.19013208]
[1729647364101,0.06547133,2624.0,2623.9,1.19013208]
[1729647364310,5.9199008,2624.3,2623.9,4.62013208]
[1729647364517,0.06547133,2624.0,2623.9,4.62013208]
[1729647364831,0.06547133,2624.0,2623.9,5.91381324]
[1729647365048,5.9199008,2624.3,2623.9,5.91381324]
[1729647365209,0.06547133,2624.0,2623.9,5.91381324]
[1729647365410,5.9199008,2624.3,2623.9,5.91381324]
[1729647365712,0.06547133,2624.0,2623.9,5.91381324]
[1729647366040,0.06547141,2624.0,2623.9,5.91381324]
[1729647366234,0.8168,2624.3,2623.9,5.91381324]
[1729647366425,0.06548161,2624.0,2623.9,5.91381324]
[1729647366627,0.8168,2624.3,2623.9,5.91381324]
[1729647366826,0.06548161,2624.0,2623.9,5.91381324]
[1729647367154,0.8168,2624.3,2623.9,5.91381324]
[1729647367313,0.06548161,2624.0,2623.9,5.91381324]
[1729647367518,0.8168,2624.3,2623.9,5.91381324]
[1729647368063,0.06548232,2624.2,2623.9,5.91381324]
[1729647368416,0.8168,2624.3,2624.0,1.16925487]
[1729647368619,0.06548211,2624.1,2624.0,1.16925487]
[1729647368813,0.8168,2624.3,2624.0,1.16925487]
[1729647369018,4.24629,2624.3,2624.0,1.16925487]
[1729647369247,0.06548247,2624.2,2624.0,1.16925487]
[1729647369661,4.24629,2624.3,2624.0,1.16925487]
[1729647369857,0.06548219,2624.1,2624.0,1.16925487]
[1729647370046,4.24629,2624.3,2624.0,1.16925487]
[1729647370246,0.06548219,2624.1,2624.0,1.16925487]
[1729647370448,4.24629,2624.3,2624.0,1.16925487]
[1729647370649,4.24629,2624.3,2623.9,4.62013208]
[1729647370650,0.06548219,2624.1,2623.9,4.62013208]
[1729647370846,0.8168,2624.3,2623.9,4.62013208]
[1729647371051,0.06548191,2624.0,2623.9,4.62013208]
[1729647371254,0.8168,2624.3,2623.9,4.62013208]
[1729647371964,0.06548247,2624.2,2623.9,4.62013208]
[1729647372166,0.8168,2624.3,2624.0,1.03988675]
[1729647372473,0.06548473,2624.2,2624.0,1.03988675]
[1729647372761,0.8168,2624.3,2624.0,1.03988675]
[1729647373064,0.06548473,2624.2,2623.9,4.62013208]
[1729647373426,0.8168,2624.3,2623.9,4.62013208]
[1729647373662,0.06548445,2624.1,2623.9,4.62013208]
[1729647373865,0.8168,2624.3,2623.9,4.62013208]
[1729647374160,0.06548417,2624.0,2623.9,4.62013208]
[1729647374469,0.06548417,2624.0,2623.9,5.9136341]
[1729647374629,0.8168,2624.3,2623.9,5.9136341]
[1729647374828,0.06548417,2624.0,2623.9,5.9136341]
[1729647375058,2.4904008,2624.3,2623.9,5.9136341]
[1729647375263,0.06548417,2624.0,2623.9,5.9136341]
[1729647375462,2.4904008,2624.3,2623.9,5.9136341]
[1729647375999,0.06548473,2624.2,2623.9,5.9136341]
[1729647376202,2.4904008,2624.3,2623.9,5.9136341]
[1729647376510,0.06548473,2624.2,2623.9,5.9136341]
[1729647376799,2.4904008,2624.3,2623.9,5.9136341]
[1729647377000,0.06547967,2624.2,2623.9,5.9136341]
[1729647377154,2.4904008,2624.3,2623.9,5.9136341]
[1729647377354,0.06547967,2624.2,2623.9,5.9136341]
[1729647377570,0.8168,2624.3,2624.0,1.16923695]
[1729647377771,0.06547967,2624.2,2624.0,1.16923695]
[1729647378070,0.8168,2624.3,2624.0,2.35936903]
[1729647378269,0.06547939,2624.1,2624.0,2.35936903]
[1729647378471,0.8168,2624.3,2624.0,2.35936903]
[1729647378725,0.06547939,2624.1,2624.0,5.78923903]
[1729647378912,0.8168,2624.3,2624.0,5.78923903]
[1729647379115,0.06547939,2624.1,2624.0,5.78923903]
[1729647379289,0.8168,2624.3,2624.0,5.78923903]
[1729647379508,0.06547939,2624.1,2624.0,5.78923903]
[1729647380044,0.8168,2624.3,2624.0,5.78923903]
[1729647380242,0.7603,2624.6,2624.2,4.25041]
[1729647380553,0.7603,2624.6,2624.2,7.67985]
[1729647380732,0.7603,2624.6,2624.2,8.94618746]
[1729647380943,0.7603,2624.6,2624.2,5.44044208]
[1729647381601,2.4339008,2624.6,2624.2,5.44044208]
[1729647382151,1.6736008,2624.5,2624.2,2.01093208]
[1729647382430,1.6736008,2624.4,2624.2,1.19013208]
[1729647383631,5.1028808,2624.5,2624.2,1.19013208]
[1729647383795,5.1028808,2624.5,2624.2,1.20287508]
[1729647385620,0.065479,2624.4,2624.2,1.20287508]
[1729647389915,0.065479,2624.4,2624.0,5.87829668]
[1729647390128,0.065479,2624.4,2624.0,4.21667]
[1729647390329,0.065479,2624.4,2624.0,4.21661]
[1729647390546,0.065479,2624.4,2624.1,3.42974]
[1729647390750,0.065479,2624.4,2624.0,4.21661]
[1729647390961,0.065479,2624.4,2624.1,3.50594115]
[1729647391164,0.065479,2624.4,2624.3,3.42948]
[1729647391451,0.06541826,2624.4,2624.3,3.42948]
[1729647391951,3.42878,2624.9,2624.3,3.42948]
[1729647392163,5.208469,2625.0,2624.5,3.42921]
[1729647392462,1.6736008,2624.9,2624.5,3.42921]
[1729647393765,1.6736008,2624.8,2624.5,3.42921]
[1729647393940,1.6736008,2624.8,2624.5,4.20137907]
[1729647394851,1.6736008,2624.7,2624.5,0.77216907]
[1729647395051,1.6736008,2624.7,2624.4,0.7868]
[1729647395265,1.6736008,2624.6,2624.3,1.18768132]
[1729647395426,1.6736008,2624.6,2624.2,5.40405132]
[1729647396562,6.85754,2624.9,2624.4,3.42934]
[1729647396854,5.1024608,2624.8,2624.4,3.42934]
[1729647397973,1.6736008,2624.7,2624.2,8.83359132]
[1729647398137,1.6736008,2624.7,2624.2,6.72085716]
[1729647398337,1.6736008,2624.7,2624.3,3.50567252]
[1729647399050,1.6736008,2624.7,2624.3,4.69335384]
[1729647399570,1.6736008,2624.7,2624.3,3.50567252]
[1729647400162,5.208389,2625.0,2624.3,0.07620252]
[1729647400370,1.6736008,2624.8,2624.4,3.42924]
[1729647400552,1.6736008,2624.8,2624.5,3.42922]
[1729647400760,0.06565653,2624.7,2624.5,3.42922]
[1729647401097,1.6736008,2624.7,2624.5,3.42922]
[1729647401427,0.06570685,2624.6,2624.5,3.42922]
[1729647402276,0.06570685,2624.6,2624.4,3.4293]
[1729647402445,0.06570685,2624.6,2624.4,4.51055667]
[1729647403562,0.06570685,2624.6,2624.4,4.51060667]
[1729647408010,0.05296685,2624.6,2624.4,4.51060667]
[1729647411389,0.05296685,2624.6,2624.4,1.08125667]
[1729647411590,0.05296685,2624.6,2624.3,3.42943]
[1729647414896,0.05296685,2624.6,2624.4,3.42933]
[1729647418749,0.05296685,2624.6,2624.3,4.61715132]
[1729647421861,0.05296685,2624.6,2624.3,1.18768132]
[1729647422060,0.05296685,2624.6,2624.4,3.42934]
[1729647422250,0.05296685,2624.6,2624.4,4.47104064]
[1729647426577,0.05296685,2624.6,2624.4,5.65872196]
[1729647426727,0.05296685,2624.6,2624.4,5.73492027]
[1729647427746,5.8851008,2624.9,2624.4,5.73492027]
[1729647427957,0.06534231,2624.5,2624.4,5.73492027]
[1729647428138,9.3138908,2624.9,2624.4,5.73492027]
[1729647428332,0.0653422,2624.5,2624.4,4.69321963]
[1729647428671,0.06543843,2624.5,2624.4,4.61702132]
[1729647428968,9.3138908,2624.9,2624.4,4.61702132]
[1729647429443,0.06544955,2624.8,2624.4,4.61702132]
[1729647429645,0.7828,2624.7,2624.4,4.61702132]
[1729647429830,0.06544899,2624.6,2624.4,4.61702132]
[1729647430932,0.06544899,2624.6,2624.4,1.18768132]
[1729647435212,0.06544899,2624.6,2624.5,1.18768132]
[1729647438266,3.49453899,2624.6,2624.5,1.18768132]
[1729647438680,3.49453899,2624.6,2624.4,1.18768132]
[1729647438886,0.06544899,2624.6,2624.4,1.18768132]
[1729647440357,0.06544899,2624.6,2624.4,2.00588399]
[1729647441256,0.06544899,2624.6,2624.4,1.18768132]
[1729647445472,0.06544899,2624.6,2624.2,3.42958]
[1729647445670,0.06544899,2624.6,2624.4,1.18894111]
[1729647449294,1.73904979,2624.6,2624.4,1.18894111]
[1729647450722,1.73904979,2624.6,2624.3,4.61840111]
[1729647451825,1.73904979,2624.6,2624.4,1.18894111]
[1729647452825,1.73904979,2624.6,2624.3,4.61840111]
[1729647453124,0.06544899,2624.6,2624.4,4.61829111]
[1729647453817,0.06544899,2624.6,2624.4,1.18894111]
[1729647454020,1.73904979,2624.6,2624.4,1.18894111]
[1729647454219,0.06544899,2624.6,2624.4,1.18894111]
[1729647454611,1.73904979,2624.6,2624.4,1.18894111]
[1729647455289,0.06544899,2624.6,2624.4,4.61825111]
[1729647455619,0.06544899,2624.6,2624.4,5.5815427]
[1729647460533,1.73904979,2624.6,2624.4,1.18894111]
[1729647463134,1.73904979,2624.6,2624.3,8.82145111]
[1729647463710,1.73904979,2624.6,2624.3,5.39204111]
[1729647464095,1.73904979,2624.6,2624.3,8.82145111]
[1729647464498,1.73904979,2624.6,2624.3,5.39204111]
[1729647464995,0.06544899,2624.6,2624.3,5.39204111]
[1729647465747,1.73904979,2624.6,2624.3,5.39204111]
[1729647466300,0.06544899,2624.6,2624.3,5.39204111]
[1729647467515,1.73904979,2624.6,2624.3,8.82146111]
[1729647468135,1.73904979,2624.6,2624.3,4.61834111]
[1729647469208,1.73904979,2624.6,2624.3,1.18894111]
[1729647469538,0.06544899,2624.6,2624.3,1.18894111]
[1729647469737,0.06544899,2624.6,2624.4,1.18894111]
[1729647470039,1.73904979,2624.6,2624.3,4.61835111]
[1729647471247,1.73904979,2624.6,2624.3,8.04776111]
[1729647471631,1.73904979,2624.6,2624.3,4.61835111]
[1729647475050,1.6736008,2624.5,2624.3,4.61835111]
[1729647475262,1.6736008,2624.5,2624.4,1.18894111]
[1729647475543,1.73900838,2624.5,2624.3,1.18894111]
[1729647475716,1.73900838,2624.5,2624.4,1.18894111]
[1729647477349,0.06540758,2624.5,2624.4,1.18894111]
[1729647477735,1.6736008,2624.6,2624.4,1.18894111]
[1729647477911,0.06540758,2624.5,2624.4,1.18894111]
[1729647481812,0.06540758,2624.5,2624.3,1.18894111]
[1729647482851,0.06540758,2624.5,2624.4,1.18894111]
[1729647483017,0.06540758,2624.5,2624.3,1.18894111]
[1729647484555,0.06540758,2624.5,2624.3,4.61840111]
[1729647484751,0.06540758,2624.5,2624.3,1.18894111]
[1729647485445,0.06540758,2624.5,2624.4,1.18894111]
[1729647485652,0.06540758,2624.5,2624.3,1.18894111]
[1729647486255,0.06540758,2624.5,2624.4,1.18894111]
[1729647487129,0.06540758,2624.5,2624.1,1.18894111]
[1729647487130,3.42935,2624.4,2624.1,1.18894111]
[1729647487440,1.6736008,2624.2,2624.1,1.18894111]
[1729647487649,1.6736008,2624.2,2624.0,1.18894111]
[1729647487866,1.6736008,2624.1,2624.0,1.18894111]
[1729647488984,1.73899208,2624.1,2623.9,4.61891111]
[1729647489167,1.6736008,2624.1,2623.9,4.61891111]
[1729647489698,0.8138,2624.2,2623.9,4.61891111]
[1729647489699,1.6736008,2624.0,2623.9,1.18894111]
[1729647490049,1.7389918,2624.0,2623.9,1.18894111]
[1729647490550,0.065391,2624.0,2623.9,1.18894111]
[1729647491480,1.7389918,2624.0,2623.8,1.18894111]
[1729647492756,0.065391,2624.0,2623.8,1.18894111]
[1729647493303,1.7389918,2624.0,2623.8,1.18894111]
[1729647493645,0.8138,2624.2,2623.8,4.61906111]
[1729647493892,0.06539072,2623.9,2623.8,5.72347835]
[1729647494079,3.42897,2624.7,2623.9,0.7978]
[1729647494080,0.8138,2624.7,2623.9,0.7978]
[1729647494249,1.6736008,2624.7,2624.3,4.22721]
[1729647495152,1.6736008,2624.6,2624.3,4.22721]
[1729647498600,1.6736008,2624.5,2624.3,4.22721]
[1729647498929,1.6736008,2624.5,2624.3,0.7978]
[1729647500098,1.6736008,2624.5,2624.3,4.22728]
[1729647500426,1.6736008,2624.4,2624.3,0.7978]
[1729647500625,1.6736008,2624.4,2624.2,4.61846111]
[1729647500977,1.6736008,2624.5,2624.2,4.61846111]
[1729647501428,1.6736008,2624.4,2624.2,1.18894111]
[1729647501588,1.6736008,2624.3,2624.1,2.00564111]
[1729647502032,1.6736008,2624.4,2624.1,2.00564111]
[1729647502990,3.42923,2624.5,2624.1,2.00564111]
[1729647502991,1.6736008,2624.3,2624.1,2.00564111]
[1729647503196,1.6736008,2624.4,2624.1,2.00564111]
[1729647504123,1.6736008,2624.4,2624.1,5.43537111]
[1729647505639,0.0629457,2624.3,2624.1,5.43537111]
[1729647506338,1.7365465,2624.3,2624.1,2.00564111]
[1729647506674,0.0629457,2624.3,2624.1,2.00564111]
[1729647507555,0.0629457,2624.3,2624.1,5.43538111]
[1729647507958,0.0629457,2624.3,2624.1,2.00564111]
[1729647508319,0.0629457,2624.3,2624.1,5.43538111]
[1729647509562,0.0629457,2624.3,2624.1,2.00564111]
[1729647509852,0.0629457,2624.3,2624.1,20.43537111]
[1729647510417,0.0629457,2624.3,2624.1,17.00564111]
[1729647512457,0.0629457,2624.3,2624.1,20.43536111]
[1729647512861,0.0629457,2624.3,2624.1,17.00564111]
[1729647513020,5.1028308,2624.5,2624.1,17.00564111]
[1729647513222,0.06290041,2624.4,2624.1,17.00564111]
[1729647513451,0.06290041,2624.4,2624.1,20.43536111]
[1729647513717,1.73650121,2624.4,2624.1,20.43536111]
[1729647514684,0.06290041,2624.4,2624.1,20.43536111]
[1729647516884,1.73650121,2624.4,2624.1,20.43536111]
[1729647517478,0.06290041,2624.4,2624.1,20.43536111]
[1729647520483,0.06290041,2624.4,2624.1,22.9803997]
[1729647525604,0.06290041,2624.4,2624.1,19.5506797]
[1729647525899,5.1028808,2624.5,2624.1,22.9804097]
[1729647526282,0.06286487,2624.4,2624.1,22.9804097]
[1729647529612,5.9176008,2624.6,2624.1,22.9804097]
[1729647529769,0.06284423,2624.5,2624.1,22.9804097]
[1729647531003,0.06284423,2624.5,2624.2,3.4296]
[1729647532867,0.06284423,2624.5,2624.2,7.41807156]
[1729647535271,2.4885008,2624.6,2624.2,10.84762156]
[1729647535466,0.06285977,2624.4,2624.3,4.22897]
[1729647535668,1.6736008,2624.7,2624.3,1.98844111]
[1729647535982,5.1025708,2624.7,2624.3,1.98844111]
[1729647536182,0.06285019,2624.6,2624.3,1.98844111]
[1729647537190,1.73645099,2624.6,2624.3,1.98844111]
[1729647537904,0.06285019,2624.6,2624.3,1.98844111]
[1729647538230,1.73645099,2624.6,2624.3,1.98844111]
[1729647538433,0.06285019,2624.6,2624.3,5.41790111]
[1729647538731,1.6736008,2624.7,2624.3,5.41790111]
[1729647538927,0.06284991,2624.5,2624.3,5.41790111]
[1729647539131,5.1025608,2624.7,2624.3,7.29827164]
[1729647539330,0.06284963,2624.4,2624.3,5.41790111]
[1729647539500,5.1025608,2624.7,2624.3,5.41790111]
[1729647539683,0.06284963,2624.4,2624.3,5.41790111]
[1729647539889,5.1025608,2624.7,2624.3,5.41790111]
[1729647540128,0.06284963,2624.4,2624.3,5.41790111]
[1729647540485,0.06284963,2624.4,2624.3,8.15939948]
[1729647540634,5.1025608,2624.7,2624.3,1.98844111]
[1729647540849,1.6736008,2624.5,2624.3,1.18894111]
[1729647541136,5.1028308,2624.5,2624.3,1.18894111]
[1729647541292,0.06283952,2624.4,2624.3,1.18894111]
[1729647542029,2.53834032,2624.4,2624.2,1.18894111]
[1729647542191,1.6736008,2624.3,2624.2,1.18894111]
[1729647542535,0.06284875,2624.3,2624.2,1.18894111]
[1729647543040,1.6736008,2624.5,2624.2,1.18894111]
[1729647543337,0.06283384,2624.4,2624.2,4.61855111]
[1729647543636,1.6736008,2624.5,2624.3,1.18894111]
[1729647543838,0.06276803,2624.4,2624.3,1.18894111]
[1729647545223,5.9045908,2624.6,2624.3,1.18894111]
[1729647545424,0.06277844,2624.5,2624.3,1.18894111]
[1729647547036,0.06277844,2624.5,2624.2,5.39255111]
[1729647547350,0.06277844,2624.5,2624.3,1.18894111]
[1729647547969,0.06277844,2624.5,2624.3,4.61835111]
[1729647548245,4.25965,2624.8,2624.3,4.61835111]
[1729647548246,1.6736008,2624.7,2624.3,4.61835111]
[1729647548450,0.06278454,2624.6,2624.4,1.18894111]
[1729647548812,1.6736008,2624.7,2624.4,1.18894111]
[1729647549047,0.06278454,2624.6,2624.4,1.18894111]
[1729647549265,1.6736008,2624.7,2624.4,1.18894111]
[1729647549415,1.6736008,2624.7,2624.3,4.61835111]
[1729647549755,0.06278454,2624.6,2624.3,7.6311431]
[1729647553461,0.06278454,2624.6,2624.4,1.18894111]
[1729647556035,0.06278454,2624.6,2624.3,7.6311431]
[1729647556521,0.06278454,2624.6,2624.4,1.18894111]
[1729647556725,5.1025708,2624.7,2624.4,1.18894111]
[1729647556923,0.06282474,2624.5,2624.4,1.18894111]
[1729647557163,5.1025708,2624.7,2624.4,1.18894111]
[1729647557669,0.06282502,2624.6,2624.4,1.18894111]
[1729647560285,0.06282502,2624.6,2624.3,4.61835111]
[1729647560843,1.6736008,2624.7,2624.4,1.18894111]
[1729647561152,0.06282502,2624.6,2624.3,4.61835111]
[1729647561349,0.06282502,2624.6,2624.4,1.18894111]
[1729647561563,5.1025808,2624.7,2624.4,1.18894111]
[1729647561780,0.06282458,2624.6,2624.4,1.18894111]
[1729647562099,5.1025808,2624.7,2624.3,7.35734672]
[1729647562580,0.06282458,2624.6,2624.3,7.35734672]
[1729647562779,0.06282458,2624.6,2624.4,1.18894111]
[1729647562978,0.06282458,2624.6,2624.3,7.35734672]
[1729647563184,0.06282458,2624.6,2624.4,1.18894111]
[1729647563496,0.06282458,2624.6,2624.3,3.92793672]
[1729647563673,0.06282458,2624.6,2624.4,1.18894111]
[1729647567266,4.403399,2625.0,2624.7,4.20686]
[1729647567267,0.974809,2625.0,2624.7,4.20686]
[1729647567524,0.0629344,2624.9,2624.8,3.42883]
[1729647567806,0.0629344,2624.9,2624.8,1.18894436]
[1729647568308,0.0629344,2624.9,2624.7,5.39579436]
[1729647568514,0.0629344,2624.9,2624.8,1.88704928]
[1729647569102,0.0629344,2624.9,2624.8,0.69810492]
[1729647570220,0.0629344,2624.9,2624.8,4.12693492]
[1729647570367,0.0629344,2624.9,2624.8,0.69810492]
[1729647571294,0.0629344,2624.9,2624.8,4.12693492]
[1729647571874,0.0629344,2624.9,2624.8,0.69810492]
[1729647572913,0.0629344,2624.9,2624.8,4.12693492]
[1729647573501,0.0629344,2624.9,2624.8,4.20312377]
[1729647575214,0.0629344,2624.9,2624.8,0.77429377]
[1729647575416,0.0629344,2624.9,2624.7,0.7779]
[1729647575417,0.0629344,2624.9,2624.7,5.39573436]
[1729647575623,0.0629344,2624.9,2624.7,4.20679]
[1729647575917,0.0629344,2624.9,2624.8,3.42883]
[1729647576614,0.0629344,2624.9,2624.8,3.50501828]
[1729647579303,0.0629344,2624.9,2624.8,0.07618828]
[1729647579528,0.0629344,2624.9,2624.8,0.62338054]
[1729647580683,0.0629344,2624.9,2624.8,0.54719226]
[1729647581221,0.0629344,2624.9,2624.8,0.62338115]
[1729647581427,0.0629344,2624.9,2624.8,0.54719226]
[1729647582695,1.7365352,2624.9,2624.6,4.61799436]
[1729647582936,0.0629344,2624.9,2624.6,4.61799436]
[1729647583295,0.0629344,2624.9,2624.6,3.42905]
[1729647583937,0.0629344,2624.9,2624.5,8.81632436]